bitfinex/quotes_SOLUSD_20250819
["timestamp","ask_amount","ask_price","bid_price","bid_amount"]
[1755609869338,1e-08,182.72,182.71,51.72970429]
[1755609869535,1e-08,182.72,182.71,51.00970429]
[1755609869748,1e-08,182.72,182.71,51.72970429]
[1755609870040,0.72000001,182.72,182.71,51.00970429]
[1755609870221,1e-08,182.72,182.71,51.00970429]
[1755609870730,1e-08,182.72,182.71,51.72970429]
[1755609873431,1e-08,182.72,182.71,130.92970429]
[1755609875048,0.06,182.76,182.74,26.0]
[1755609875248,0.06,182.76,182.75,45.53655012]
[1755609876948,0.06,182.76,182.75,51.00850634]
[1755609879728,0.06,182.76,182.75,44.07195622]
[1755609879930,0.06,182.76,182.75,51.00850634]
[1755609881648,0.06,182.76,182.75,51.70850634]
[1755609883329,0.06,182.76,182.75,51.00850634]
[1755609886338,0.06,182.76,182.75,13.10850634]
[1755609886546,0.06,182.76,182.75,51.62850634]
[1755609891251,0.06,182.76,182.75,50.92850634]
[1755609891643,0.06,182.76,182.75,43.99195622]
[1755609891849,0.06,182.76,182.75,50.92850634]
[1755609892441,0.06,182.76,182.75,12.40850634]
[1755609892640,0.06,182.76,182.75,51.58850634]
[1755609893967,0.06,182.76,182.75,44.65195622]
[1755609894262,0.06,182.76,182.75,51.58850634]
[1755609895663,0.06,182.76,182.75,44.65195622]
[1755609895961,0.06,182.76,182.75,51.58850634]
[1755609898156,0.06,182.76,182.75,43.95195622]
[1755609898532,0.06,182.76,182.75,44.65195622]
[1755609899138,0.06,182.76,182.75,51.58850634]
[1755609899856,2.05949031,182.8,182.75,65.2683969]
[1755609900029,0.69,182.8,182.77,6.93655012]
[1755609900229,6.93655012,182.78,182.75,5.47195622]
[1755609900560,6.93655012,182.76,182.73,38.5]
[1755609900740,6.93655012,182.74,182.72,5.47285464]
[1755609900942,0.69,182.73,182.72,43.97285464]
[1755609901363,14.28559401,182.79,182.72,51.60940476]
[1755609901533,2.05959226,182.78,182.72,64.59154136]
[1755609901740,6.93655012,182.76,182.73,38.5]
[1755609901936,6.93655012,182.79,182.73,46.13655012]
[1755609902140,1.369634,182.78,182.75,6.93655012]
[1755609902339,0.69,182.8,182.76,39.22]
[1755609903143,0.69,182.8,182.77,0.7]
[1755609903662,14.96501857,182.81,182.77,0.7]
[1755609903867,0.69,182.81,182.78,43.9910581]
[1755609904168,10.6237081,182.86,182.79,7.63655012]
[1755609904345,2.05919917,182.85,182.81,6.93655012]
[1755609904543,2.05919917,182.85,182.82,38.52]
[1755609904750,2.05919917,182.85,182.82,43.92251679]
[1755609905061,2.05919917,182.85,182.82,38.52]
[1755609905458,2.11919917,182.85,182.83,5.46956188]
[1755609905857,0.69,182.84,182.83,5.46956188]
[1755609906760,1.42916453,182.85,182.82,5.46986106]
[1755609906941,2.11916453,182.85,182.82,5.46986106]
[1755609907139,2.11916453,182.85,182.82,6.16986106]
[1755609907140,1.42916453,182.85,182.82,6.16986106]
[1755609907459,1.42916453,182.85,182.82,5.46986106]
[1755609907460,0.06,182.85,182.82,5.46986106]
[1755609907652,0.69,182.84,182.82,5.46986106]
[1755609908050,0.71,182.83,182.82,5.46986106]
[1755609909157,6.99655012,182.85,182.82,5.46986106]
[1755609909465,0.06,182.85,182.82,17.88010016]
[1755609909669,0.06,182.85,182.82,12.40641118]
[1755609909968,0.06,182.85,182.82,6.15986106]
[1755609911244,0.06,182.85,182.84,26.0]
[1755609911571,0.06,182.85,182.84,31.46926274]
[1755609912666,0.06,182.85,182.84,32.15926274]
[1755609912861,0.06,182.85,182.84,31.46926274]
[1755609913572,0.77,182.85,182.84,26.0]
[1755609913866,22.67127494,182.85,182.82,26.0]
[1755609914161,13.59559401,182.82,182.77,38.48]
[1755609914385,0.71,182.81,182.76,38.48]
[1755609914545,0.71,182.81,182.79,26.0]
[1755609914859,14.30559401,182.83,182.81,26.0]
[1755609915167,20.53214413,182.83,182.81,26.0]
[1755609915370,20.53214413,182.83,182.81,31.47007201]
[1755609915547,6.93655012,182.82,182.81,26.0]
[1755609915751,0.71,182.82,182.81,26.0]
[1755609915954,6.93655012,182.83,182.81,31.47006786]
[1755609916151,0.06,182.85,182.82,0.69]
[1755609916658,1.42929226,182.85,182.82,0.69]
[1755609917330,0.06,182.85,182.82,0.69]
[1755609917476,0.06,182.85,182.83,5.46956188]
[1755609918148,0.06,182.85,182.83,6.15956188]
[1755609919079,0.77,182.85,182.81,6.16016027]
[1755609919383,0.06,182.85,182.82,0.69]
[1755609919946,0.06,182.85,182.81,5.47016027]
[1755609920180,7.70655012,182.85,182.81,5.47016027]
[1755609920389,7.70655012,182.85,182.81,6.16016027]
[1755609920390,0.77,182.85,182.81,6.16016027]
[1755609920554,7.70655012,182.85,182.81,6.16016027]
[1755609920756,6.93655012,182.83,182.79,5.47075879]
[1755609920967,0.71,182.82,182.79,5.47075879]
[1755609921359,6.93655012,182.83,182.79,6.16075879]
[1755609921680,0.71,182.83,182.79,6.16075879]
[1755609921856,0.77,182.85,182.8,7.62655012]
[1755609922174,1.42922787,182.85,182.81,7.62655012]
[1755609922590,0.06,182.85,182.82,0.69]
[1755609922743,0.06,182.85,182.82,7.62655012]
[1755609922943,0.06,182.85,182.81,6.93655012]
[1755609923147,7.70655012,182.85,182.8,6.16045951]
[1755609923387,0.71,182.84,182.8,6.16045951]
[1755609923755,7.64655012,182.83,182.79,5.47070039]
[1755609923989,0.71,182.82,182.79,5.47070039]
[1755609924160,0.71,182.82,182.79,6.16070039]
[1755609924475,6.93655012,182.83,182.79,6.16070039]
[1755609924878,20.59214413,182.85,182.8,7.62655012]
[1755609925080,20.59214413,182.85,182.81,0.69]
[1755609925280,21.30214413,182.85,182.81,0.69]
[1755609925882,0.06,182.85,182.82,6.15986106]
[1755609926079,0.06,182.85,182.83,0.69]
[1755609926582,0.06,182.85,182.84,0.69]
[1755609927966,0.06,182.85,182.84,6.15926274]
[1755609929087,0.06,182.85,182.84,5.46926274]
[1755609929987,0.06,182.85,182.83,5.46956188]
[1755609930284,0.06,182.85,182.83,6.15956188]
[1755609931389,0.06,182.85,182.84,0.69]
[1755609932190,0.06,182.85,182.84,85.35926274]
[1755609932487,0.06,182.85,182.84,130.81581286]
[1755609932653,1e-08,182.85,182.84,51.61581286]
[1755609933051,1e-08,182.85,182.84,55.29665086]
[1755609934287,1e-08,182.85,182.84,134.49665086]
[1755609935073,1e-08,182.85,182.84,95.97665086]
[1755609935279,1e-08,182.85,182.84,134.49665086]
[1755609935957,1e-08,182.85,182.84,95.97665086]
[1755609936279,1e-08,182.85,182.84,134.47665086]
[1755609937275,1e-08,182.85,182.84,55.27665086]
[1755609941214,1e-08,182.85,182.84,9.15010074]
[1755609941397,0.66000001,182.85,182.84,73.63010074]
[1755609941694,1e-08,182.85,182.84,81.25665086]
[1755609941997,1e-08,182.85,182.84,77.57581286]
[1755609942592,1e-08,182.85,182.84,76.88581286]
[1755609942791,1e-08,182.85,182.84,70.63926274]
[1755609942985,1e-08,182.85,182.84,77.57581286]
[1755609943701,1e-08,182.85,182.84,70.63926274]
[1755609943905,1e-08,182.85,182.84,77.57581286]
[1755609944995,1e-08,182.85,182.84,51.57581286]
[1755609946211,1e-08,182.85,182.84,130.77581286]
[1755609949492,1.36869666,182.93,182.87,26.0]
[1755609949493,0.66,182.93,182.87,26.0]
[1755609949695,0.66,182.93,182.91,6.93655012]
[1755609949905,0.66,182.93,182.91,45.41655012]
[1755609950105,0.66,182.92,182.91,45.41655012]
[1755609950908,0.66,182.94,182.91,45.41655012]
[1755609951218,0.66,182.94,182.93,6.93655012]
[1755609951394,0.66,182.96,182.93,6.93655012]
[1755609951604,0.66,182.96,182.95,5.4659743]
[1755609951921,6.93655012,182.99,182.95,5.4659743]
[1755609952218,0.66,182.98,182.95,5.4659743]
[1755609952998,0.66,182.98,182.95,43.9459743]
[1755609953194,0.66,182.98,182.95,44.6359743]
[1755609953399,0.66,182.98,182.96,6.93655012]
[1755609953635,0.66,182.98,182.97,5.46537683]
[1755609954135,14.25559401,183.01,182.97,5.46537683]
[1755609954341,14.25559401,183.01,182.97,12.40192695]
[1755609954499,0.72,183.0,182.97,12.40192695]
[1755609954713,0.72,183.0,182.97,50.88192695]
[1755609954916,0.66,182.99,182.97,50.88192695]
[1755609955931,0.06,183.0,182.97,43.94537683]
[1755609955932,0.66,182.98,182.97,43.94537683]
[1755609956110,0.06,183.0,182.97,43.94537683]
[1755609956313,0.66,182.99,182.97,43.94537683]
[1755609957106,0.66,182.99,182.97,5.46537683]
[1755609958652,0.66,182.98,182.97,5.46537683]
[1755609959218,0.66,182.98,182.96,69.92558636]
[1755609959418,0.66,182.98,182.96,43.92558636]
[1755609960547,6.99655012,183.0,182.94,26.0]
[1755609960738,6.93655012,182.96,182.93,84.66647336]
[1755609960938,0.66,182.95,182.93,5.46647336]
[1755609961262,6.93655012,182.99,182.94,7.62655012]
[1755609961473,6.93655012,182.97,182.93,38.46]
[1755609961648,6.93655012,182.95,182.91,43.94708645]
[1755609961848,13.59559401,182.99,182.91,51.57363657]
[1755609962047,0.66,182.95,182.91,51.57363657]
[1755609962233,0.66,182.95,182.91,44.63708645]
[1755609962566,6.93655012,182.97,182.91,50.88363657]
[1755609962729,0.66,182.97,182.92,0.69]
[1755609962933,0.66,182.96,182.92,6.93655012]
[1755609963253,0.66,182.96,182.92,7.62655012]
[1755609963551,0.66,182.98,182.94,6.93655012]
[1755609963742,0.66,182.98,182.95,0.69]
[1755609964162,0.66,182.98,182.94,6.93655012]
[1755609964353,0.66,182.98,182.94,7.62655012]
[1755609964537,0.72,183.0,182.96,6.93655012]
[1755609964744,0.06,183.0,182.97,5.46537683]
[1755609964948,0.66,182.99,182.97,5.46537683]
[1755609965155,0.66,182.98,182.93,59.08264549]
[1755609965356,0.66,182.97,182.94,5.46627309]
[1755609965660,0.66,182.99,182.94,13.09282321]
[1755609965863,6.99655012,183.0,182.94,13.09282321]
[1755609966031,0.66,182.98,182.94,13.09282321]
[1755609966229,0.66,182.98,182.95,6.93655012]
[1755609966848,0.66,182.98,182.96,5.46567555]
[1755609967469,0.06,183.0,182.96,6.15567555]
[1755609967801,0.66,182.99,182.96,5.46567555]
[1755609968993,7.65655012,182.98,182.93,52.14609537]
[1755609969155,0.72,182.97,182.94,5.46627309]
[1755609969486,7.65655012,182.99,182.94,13.12282321]
[1755609969656,0.72,182.98,182.94,13.12282321]
[1755609969858,0.72,182.98,182.94,85.38627309]
[1755609970181,0.72,182.98,182.94,92.32282321]
[1755609970386,0.78,183.0,182.95,7.65655012]
[1755609970686,0.72,182.99,182.95,7.65655012]
[1755609970899,0.72,182.99,182.95,6.18569696]
[1755609971073,7.65655012,182.99,182.95,6.18569696]
[1755609971271,0.72,182.99,182.95,13.12224708]
[1755609971772,0.06,183.0,182.96,0.72]
[1755609972458,0.06,183.0,182.97,7.65655012]
[1755609972964,0.06,183.0,182.98,5.46507815]
[1755609973158,0.06,183.0,182.98,6.18507815]
[1755609973365,0.78,183.0,182.95,0.72]
[1755609973574,0.78,183.0,182.95,7.65655012]
[1755609973771,0.78,183.0,182.96,0.72]
[1755609974171,7.65655012,182.99,182.95,5.46589001]
[1755609974372,6.93655012,182.97,182.94,84.69618811]
[1755609974568,7.65655012,182.97,182.94,84.69618811]
[1755609974769,0.72,182.97,182.94,84.69618811]
[1755609974967,6.93655012,182.95,182.94,0.03]
[1755609975197,20.53214413,182.95,182.94,0.03]
[1755609975359,21.25214413,182.95,182.94,0.03]
[1755609975563,22.62075229,182.95,182.94,0.03]
[1755609975862,21.90075229,182.95,182.94,0.03]
[1755609976063,26.29248969,182.95,182.94,0.03]
[1755609976269,0.72,182.95,182.94,0.03]
[1755609976694,21.25214413,182.95,182.94,0.03]
[1755609976994,22.62065634,182.95,182.94,0.03]
[1755609977577,28.08663064,182.95,182.94,0.03]
[1755609978283,31.76021955,182.95,182.94,0.03]
[1755609979203,28.08663064,182.95,182.94,0.03]
[1755609979368,31.76023766,182.95,182.94,0.03]
[1755609980084,22.62065634,182.95,182.94,0.03]
[1755609981873,22.62078457,182.95,182.94,0.03]
[1755609982088,28.08675887,182.95,182.94,0.03]
[1755609982281,31.76070722,182.95,182.94,0.03]
[1755609982769,31.7607635,182.95,182.94,0.03]
[1755609984003,26.2947892,182.95,182.94,0.03]
[1755609984301,21.90084085,182.95,182.94,0.03]
[1755609984674,22.62084085,182.95,182.94,0.03]
[1755609985185,28.08681515,182.95,182.94,0.03]
[1755609985493,31.76134669,182.95,182.94,0.03]
[1755609988592,24.82479657,182.95,182.94,0.03]
[1755609988783,31.76134669,182.95,182.94,0.03]
[1755609990677,30.39264997,182.95,182.94,0.03]
[1755609990886,31.76135456,182.95,182.94,0.03]
[1755609992477,25.57538026,182.95,182.94,0.03]
[1755609992893,31.76135456,182.95,182.94,0.03]
[1755609993986,31.76130655,182.95,182.94,0.03]
[1755609996781,57.76130655,182.95,182.94,1e-08]
[1755609997186,62.80610677,182.95,182.94,1e-08]
[1755609998541,36.80610677,182.95,182.94,1e-08]
[1755609998837,41.40849754,182.95,182.94,1e-08]
[1755609999911,41.40886629,182.95,182.94,1e-08]
[1755610000427,39.59559401,182.91,182.9,0.03]
[1755610000629,91.90840542,182.91,182.9,0.03]
[1755610000829,92.58840542,182.91,182.9,0.03]
[1755610001018,91.21931377,182.91,182.9,0.03]
[1755610001529,99.19754947,182.91,182.88,0.03]
[1755610001703,20.53214413,182.89,182.88,0.03]
[1755610001901,62.76449666,182.89,182.88,0.03]
[1755610002106,63.44449666,182.89,182.88,0.03]
[1755610002318,13.59559401,182.88,182.84,0.03]
[1755610002538,26.00110776,182.85,182.84,0.03]
[1755610002713,64.58110776,182.85,182.84,0.69]
[1755610003610,64.58110776,182.85,182.84,0.03]
[1755610005323,65.26110776,182.85,182.84,0.03]
[1755610006222,66.63052406,182.85,182.84,0.03]
[1755610008755,70.29658814,182.85,182.84,0.03]
[1755610010039,72.48963014,182.85,182.84,0.03]
[1755610011621,21.90156043,182.85,182.84,0.69]
[1755610011922,59.09214413,182.85,182.84,0.69]
[1755610012549,52.15559401,182.85,182.84,0.69]
[1755610012739,59.09214413,182.85,182.84,0.69]
[1755610013158,64.56110776,182.85,182.84,0.69]
[1755610013766,64.56110776,182.85,182.84,0.03]
[1755610015356,57.62455764,182.85,182.84,0.69]
[1755610015527,64.56110776,182.85,182.84,0.69]
[1755610016158,59.09214413,182.85,182.84,0.69]
[1755610016631,6.93655012,182.89,182.84,6.15926274]
[1755610016827,52.13559401,182.88,182.85,0.66]
[1755610017035,57.63603201,182.88,182.85,0.66]
[1755610017349,52.13559401,182.88,182.85,7.59655012]
[1755610017546,52.13559401,182.88,182.85,6.93655012]
[1755610017748,52.13559401,182.88,182.87,26.0]
[1755610017950,52.13559401,182.88,182.87,26.66]
[1755610019555,52.13559401,182.88,182.87,32.1283655]
[1755610021758,52.13559401,182.88,182.87,26.66]
[1755610021961,52.13559401,182.88,182.87,26.0]
[1755610022668,52.13559401,182.88,182.87,26.66]
[1755610023783,52.13559401,182.88,182.87,0.66]
[1755610023968,52.13559401,182.88,182.87,6.1283655]
[1755610028586,38.54,182.88,182.87,13.06491562]
[1755610029482,38.54,182.88,182.87,6.1283655]
[1755610030693,38.54,182.88,182.87,13.06491562]
[1755610031363,0.06,182.92,182.87,13.06491562]
[1755610031680,38.52,182.91,182.9,6.93655012]
[1755610032077,38.52,182.91,182.9,7.59655012]
[1755610032865,38.52,182.91,182.9,13.06401868]
[1755610033796,38.5,182.91,182.9,13.06401868]
[1755610033958,38.5,182.91,182.9,6.12746856]
[1755610034492,38.56,182.92,182.9,6.12746856]
[1755610035200,38.56,182.92,182.9,5.46746856]
[1755610035385,52.15559401,182.92,182.91,6.12716964]
[1755610036111,0.06,182.92,182.91,13.06371976]
[1755610040022,0.06,182.92,182.91,6.12716964]
[1755610040198,0.06,182.92,182.9,12.40396426]
[1755610040598,0.06,182.92,182.91,0.66]
[1755610040993,0.06,182.92,182.91,7.59655012]
[1755610042129,0.06,182.92,182.91,13.06371976]
[1755610049806,0.06,182.92,182.91,6.12716964]
[1755610050009,0.06,182.92,182.91,13.06371976]
[1755610051827,0.06,182.92,182.91,6.12716964]
[1755610052024,0.06,182.92,182.91,13.06371976]
[1755610052610,0.06,182.92,182.91,92.26371976]
[1755610054716,0.06,182.92,182.91,130.68371976]
[1755610060438,0.06,182.92,182.91,91.60371976]
[1755610060940,0.06,182.92,182.91,92.28371976]
[1755610062023,0.06,182.92,182.91,91.60371976]
[1755610063041,0.06,182.92,182.91,12.40371976]
[1755610063226,0.06,182.92,182.91,13.08371976]
[1755610063418,0.06,182.92,182.91,6.14716964]
[1755610063631,0.06,182.92,182.91,51.50371976]
[1755610065757,1e-08,182.92,182.91,130.70371976]
[1755610066551,1e-08,182.92,182.91,132.89400076]
[1755610067447,1e-08,182.95,182.94,26.0]
[1755610067652,1e-08,182.95,182.94,71.35655012]
[1755610067834,0.06,182.98,182.95,6.93655012]
[1755610068153,0.06,182.98,182.97,38.40192695]
[1755610068658,0.06,182.98,182.97,39.08192695]
[1755610068875,0.68,183.03,182.97,52.74536904]
[1755610069153,0.68,183.03,182.98,38.42]
[1755610069329,0.68,183.03,183.01,6.93655012]
[1755610069747,0.68,183.02,183.01,6.93655012]
[1755610070246,8.31240483,183.08,183.02,5.46388372]
[1755610070551,8.31240483,183.08,183.02,12.40043384]
[1755610070731,9.78674771,183.08,183.03,6.93655012]
[1755610071133,9.78674771,183.08,183.02,12.40043384]
[1755610071332,9.78674771,183.08,183.02,5.46388372]
[1755610071535,2.85019759,183.08,183.02,17.81892208]
[1755610071744,4.58226119,183.17,183.07,6.93655012]
[1755610071944,38.44,183.16,183.07,6.93655012]
[1755610072158,38.44,183.16,183.07,12.39885144]
[1755610072159,13.59559401,183.12,183.07,12.39885144]
[1755610072702,13.59559401,183.1,183.07,5.46230132]
[1755610072890,13.59559401,183.1,183.06,5.46262626]
[1755610073191,0.61,183.09,183.06,12.39917638]
[1755610073665,13.59559401,183.1,183.06,12.39917638]
[1755610073876,13.59559401,183.12,183.07,6.93655012]
[1755610074072,0.61,183.09,183.07,6.93655012]
[1755610074265,0.61,183.09,183.07,12.39887437]
[1755610074866,0.61,183.09,183.07,6.93655012]
[1755610075078,0.61,183.09,183.06,12.3992088]
[1755610076469,0.06,183.1,183.06,12.3992088]
[1755610076904,0.67,183.1,183.06,12.3992088]
[1755610077207,0.67,183.1,183.07,0.68]
[1755610077208,0.06,183.1,183.07,0.68]
[1755610077371,0.06,183.1,183.07,6.93655012]
[1755610077767,0.06,183.1,183.08,0.68]
[1755610077982,0.06,183.1,183.08,7.61655012]
[1755610078183,0.06,183.1,183.08,12.39847854]
[1755610078382,0.06,183.1,183.08,5.46192842]
[1755610079862,0.06,183.1,183.09,6.14179474]
[1755610080308,0.67,183.1,183.04,0.68]
[1755610080481,0.67,183.1,183.05,6.93655012]
[1755610080684,0.61,183.09,183.06,6.93655012]
[1755610081104,0.61,183.09,183.05,6.93655012]
[1755610081481,0.61,183.09,183.05,12.39948331]
[1755610081816,0.61,183.09,183.05,13.07948331]
[1755610082108,0.61,183.08,183.04,5.46321582]
[1755610082275,13.59559401,183.06,183.0,72.05655012]
[1755610082477,0.61,183.05,183.0,7.61655012]
[1755610082699,14.20559401,183.06,183.01,7.61655012]
[1755610083001,0.61,183.05,183.01,7.61655012]
[1755610083381,20.53214413,183.06,183.0,12.40101314]
[1755610083578,0.61,183.06,183.01,6.93655012]
[1755610083791,0.61,183.06,183.01,0.68]
[1755610084524,46.53214413,183.02,182.99,5.48173112]
[1755610084830,20.53214413,183.0,182.99,5.48173112]
[1755610084978,20.53214413,183.0,182.93,12.4030353]
[1755610085186,13.59559401,182.98,182.94,0.68]
[1755610085719,14.20559401,182.98,182.93,5.46648518]
[1755610086025,21.14214413,182.98,182.93,6.14648518]
[1755610086200,20.53214413,182.96,182.9,13.08396726]
[1755610086386,6.93655012,182.95,182.9,5.46741714]
[1755610086700,20.53214413,182.98,182.92,6.93655012]
[1755610086906,13.59559401,182.96,182.91,7.61655012]
[1755610087421,13.59559401,182.96,182.93,5.46657191]
[1755610087987,13.59559401,182.96,182.92,6.14678837]
[1755610088689,13.59559401,182.94,182.9,31.46738166]
[1755610088891,6.93655012,182.91,182.86,0.03]
[1755610089106,6.93655012,182.91,182.86,5.4983897]
[1755610089284,7.54655012,182.91,182.86,5.4983897]
[1755610090000,6.93655012,182.9,182.86,5.4983897]
[1755610090510,7.54655012,182.9,182.86,10.99222831]
[1755610090717,21.14214413,182.9,182.89,0.03]
[1755610091209,20.53214413,182.9,182.89,0.03]
[1755610091392,13.59559401,182.9,182.89,0.03]
[1755610091592,20.53214413,182.9,182.89,0.03]
[1755610092219,20.63214413,182.9,182.89,0.03]
[1755610092388,64.81961269,182.9,182.89,0.03]
[1755610092802,59.35214413,182.9,182.89,0.03]
[1755610094407,13.59559401,182.9,182.89,0.71]
[1755610094594,52.31559401,182.9,182.89,0.71]
[1755610095804,38.72,182.9,182.89,0.71]
[1755610096197,20.53214413,182.93,182.89,0.71]
[1755610096398,13.59559401,182.91,182.89,0.71]
[1755610096601,13.59559401,182.94,182.89,6.17764115]
[1755610096816,13.59559401,182.94,182.92,6.93655012]
[1755610097015,13.59559401,182.94,182.93,0.68]
[1755610097221,38.7,182.95,182.93,7.61655012]
[1755610097396,20.53214413,182.98,182.94,0.68]
[1755610097600,13.59559401,182.96,182.94,0.68]
[1755610097801,13.59559401,182.96,182.95,0.68]
[1755610098614,13.59559401,182.96,182.94,5.46602538]
[1755610099325,13.59559401,182.96,182.93,5.46653942]
[1755610099696,13.59559401,182.94,182.91,5.46693972]
[1755610099896,13.59559401,182.94,182.92,0.68]
[1755610100113,13.59559401,182.94,182.93,0.68]
[1755610100410,38.7,182.96,182.94,5.46627309]
[1755610100610,38.7,182.96,182.95,0.68]
[1755610100839,38.7,182.96,182.93,5.46654844]
[1755610101040,13.59559401,182.95,182.92,5.46680701]
[1755610101401,13.59559401,182.95,182.92,6.14680701]
[1755610101996,13.59559401,182.95,182.93,0.68]
[1755610102226,6.93655012,182.98,182.93,0.68]
[1755610102397,13.59559401,182.96,182.93,7.61655012]
[1755610102719,13.59559401,182.96,182.94,6.14627309]
[1755610102919,13.59559401,182.96,182.94,5.46627309]
[1755610103135,13.59559401,182.96,182.92,13.0831234]
[1755610103336,6.93655012,182.95,182.91,5.46691536]
[1755610103505,38.68,182.94,182.91,5.46691536]
[1755610104444,20.53214413,182.93,182.9,5.46738995]
[1755610104726,20.53214413,182.93,182.89,6.17767652]
[1755610105532,20.53214413,182.9,182.89,0.03]
[1755610105828,59.21214413,182.9,182.89,0.03]
[1755610107243,52.27559401,182.9,182.89,0.71]
[1755610107745,52.27559401,182.9,182.89,0.03]
[1755610109820,52.25559401,182.9,182.89,0.03]
[1755610111443,59.19214413,182.9,182.89,0.03]
[1755610111635,52.86559401,182.9,182.89,0.03]
[1755610111936,59.19214413,182.9,182.89,0.03]
[1755610115343,52.25559401,182.9,182.89,0.03]
[1755610115514,0.61,182.96,182.89,0.71]
[1755610115719,13.59559401,182.94,182.89,7.64655012]
[1755610115910,13.59559401,182.92,182.9,0.68]
[1755610116116,13.59559401,182.92,182.91,0.68]
[1755610116317,13.59559401,182.92,182.89,0.71]
[1755610116643,38.66,182.91,182.89,0.71]
[1755610117114,13.59559401,182.9,182.89,0.03]
[1755610117644,20.53214413,182.9,182.89,0.03]
[1755610117851,13.59559401,182.94,182.89,7.64655012]
[1755610118147,13.59559401,182.98,182.9,7.60655012]
[1755610118148,13.59559401,182.92,182.9,7.60655012]
[1755610118356,13.59559401,182.92,182.91,0.67]
[1755610119174,13.59559401,182.92,182.91,6.13716964]
[1755610119855,38.68,182.93,182.91,13.07371976]
[1755610120163,38.68,182.93,182.92,0.67]
[1755610120877,38.68,182.93,182.91,5.46716964]
[1755610121170,13.59559401,182.92,182.91,5.46716964]
[1755610121502,13.59559401,182.92,182.89,0.03]
[1755610121503,21.14214413,182.92,182.89,0.03]
[1755610121640,6.93655012,182.9,182.89,0.03]
[1755610121967,38.7,182.91,182.89,0.03]
[1755610122362,45.63655012,182.91,182.89,0.03]
[1755610122663,13.59559401,182.9,182.89,0.03]
[1755610122878,14.20559401,182.9,182.89,0.03]
[1755610123046,20.53214413,182.9,182.89,0.03]
[1755610123242,13.59559401,182.9,182.89,0.03]
[1755610123436,20.53214413,182.9,182.89,0.03]
[1755610123760,21.14214413,182.9,182.89,0.03]
[1755610124054,20.53214413,182.9,182.89,0.03]
[1755610124638,13.59559401,182.9,182.89,0.03]
[1755610125561,38.7,182.91,182.89,0.03]
[1755610126669,38.7,182.91,182.9,0.67]
[1755610126840,40.06870022,182.91,182.9,0.67]
[1755610127036,40.06870022,182.91,182.89,0.03]
[1755610127260,1.36870022,182.9,182.89,5.49776751]
[1755610128074,1.36870022,182.9,182.89,6.16776751]
[1755610128439,38.7,182.91,182.89,6.16776751]
[1755610129067,38.7,182.91,182.89,13.10431763]
[1755610130284,38.7,182.91,182.9,7.60655012]
[1755610130490,38.7,182.91,182.9,0.67]
[1755610131257,38.7,182.91,182.9,7.60655012]
[1755610131647,7.03655012,182.98,182.9,7.60655012]
[1755610131846,13.59559401,182.96,182.92,6.93655012]
[1755610132047,40.02840296,182.95,182.94,5.46627309]
[1755610132248,40.02840296,182.95,182.94,6.13627309]
[1755610132761,40.02840296,182.95,182.94,13.07282321]
[1755610132956,13.59559401,182.98,182.94,13.07282321]
[1755610133188,38.68,182.97,182.96,6.93655012]
[1755610133476,38.68,182.97,182.96,7.60655012]
[1755610134174,13.59559401,182.96,182.93,5.46647451]
[1755610134354,13.59559401,182.96,182.93,12.40302463]
[1755610134674,13.59559401,182.96,182.93,13.07302463]
[1755610136481,13.59559401,182.96,182.93,12.40302463]
[1755610137395,13.59559401,182.96,182.93,13.07302463]
[1755610137872,13.59559401,182.96,182.94,6.93655012]
[1755610138198,13.59559401,182.96,182.93,6.13647451]
[1755610138371,13.59559401,182.96,182.94,12.40255692]
[1755610139899,13.59559401,182.96,182.94,5.4660068]
[1755610140379,38.68,182.97,182.95,7.60655012]
[1755610140784,38.68,182.97,182.95,6.93655012]
[1755610140976,38.68,182.97,182.96,7.60655012]